Cogmind - Beta 13 @@@ ROGUE MODE // 2024.04.25 @ 12:49:34 Player: Gantra Result: Destroyed by X-62 Marksman with Pulse Rifle Performance ------------- Evolutions (2) 1000 Regions Visited (5) 1000 Robots Destroyed (62) 310 Value Destroyed (1426) 1426 Prototype IDs (28) 560 Alien Tech Used (0) 0 Bonus (322) 322 TOTAL SCORE: 4618 Bonus ------- Follower Combat Kills 322 Cogmind --------- Core Integrity 0/550 Matter 252/300 Energy 80/100 System Corruption 0% Temperature Cool (29) Movement Core (600) Ox11 Location -8/Materials Parts ------- > --- POWER (1) -------- (None) > --- PROPULSION (4) --- Aerolev Unit > --- UTILITY (4) ------ Large Storage Unit Actuator Array > --- WEAPON (2) ------- Particle Cannon Improved Grenade Launcher > --- INVENTORY (15) --- Cooled Ion Engine Armored Treads Improved Sensor Array Signal Interpreter Improved Light Armor Plating AWS/Autocannon Improved Datajack Peak State ------------ > --- POWER ------------ Cooled Ion Engine > --- PROPULSION ------- Aerolev Unit Aerolev Unit Aerolev Unit Aerolev Unit > --- UTILITY ---------- Huge Storage Unit Structural Scanner Signal Interpreter Actuator Array > --- WEAPON ----------- Hammer Makeshift Sword > --- INVENTORY -------- Cooled Ion Engine Cooled Ion Engine Light Deuterium Engine Armored Treads Large Storage Unit Large Battery Large Matter Pod Improved Sensor Array Signal Interpreter Improved Light Armor Plating Hacking Suite Particle Cannon Gauss Rifle Light Cannon Light Cannon Improved Light Cannon Bore Cannon AWS/Autocannon Grenade Launcher Rocket Launcher Improved Grenade Launcher Mining Laser Plasma Cutter [Rating: 37] Favorites ----------- Power Improved Ion Engine Engine Improved Ion Engine Power Core Light Nuclear Core Propulsion Compact Wheel Treads Light Treads Leg Aluminum Leg Wheel Compact Wheel Hover Unit Aerolev Unit Flight Unit Improved VTOL Module Utility Signal Interpreter Device Structural Scanner Storage Huge Storage Unit Processor Signal Interpreter Protection Light Armor Plating Weapon Makeshift Sword Energy Gun Medium Laser Energy Cannon Particle Cannon Ballistic Gun Assault Rifle Ballistic Cannon Light Cannon Launcher Grenade Launcher Impact Weapon Hammer Slashing Weapon Makeshift Sword Build | -11 -10 -10 -10 -9 -8 ------- Run | Yrd Mat Min Exi Min Mat Slots Evolved 4 | . . . . . 4 Power . | . . . . . . Propulsion 2 | . . . . . 2 Utility 2 | . . . . . 2 Weapon . | . . . . . . Parts Attached 70 | 9 21 1 2 10 27 Power 11 | 1 3 1 . . 6 Engine 9 | 1 3 1 . . 4 Core 2 | . . . . . 2 Reactor . | . . . . . . Propulsion 30 | 4 5 . . 10 11 Treads 4 | . . . . 4 . Leg 4 | 2 . . . 2 . Wheel 14 | 2 5 . . 4 3 Hover 7 | . . . . . 7 Flight 1 | . . . . . 1 Utility 14 | 2 6 . . . 6 Device 5 | . 1 . . . 4 Storage 5 | 2 2 . . . 1 Processor 2 | . 2 . . . . Hackware . | . . . . . . Protection 2 | . 1 . . . 1 Artifact . | . . . . . . Weapon 15 | 2 7 . 2 . 4 Energy Gun 2 | 1 1 . . . . Energy Cannon 2 | . 1 . . . 1 Ballistic Gun 2 | 1 1 . . . . Ballistic Cannon 4 | . 3 . . . 1 Launcher 2 | . 1 . . . 1 Special Weapon . | . . . . . . Impact Weapon 1 | . . . . . 1 Slashing Weapon 2 | . . . 2 . . Piercing Weapon . | . . . . . . Special Melee Weapon . | . . . . . . Unidentified Prototypes 3 | . . . . . 3 Parts Lost 21 | . 5 1 . . 15 Power 2 | . 1 . . . 1 Propulsion 11 | . 3 1 . . 7 Utility 4 | . 1 . . . 3 Weapon 4 | . . . . . 4 Highest Loss Streak 10 | . 3 1 . . 10 To Critical Strikes . | . . . . . . Average Slot Usage (%) 91 | . 92 94 84 100 93 Engine 12 | . 11 14 14 14 7 Treads 1 | . . . . 11 . Wheel 19 | . 24 22 14 15 19 Hover 1 | . . . . . 14 Device 3 | . 3 . . . 16 Storage 13 | . 13 14 14 14 9 Processor 11 | . 7 14 14 14 8 Energy Gun 1 | . 5 . . . . Energy Cannon 5 | . 8 14 2 . . Ballistic Cannon 6 | . 11 14 2 . . Slashing Weapon 11 | . . . 22 28 10 Naked Turns . | . . . . . . Heaviest Build 98 | 12 92 94 94 91 98 Greatest Support 64 | 32 32 32 16 40 64 Greatest Overweight (x) 12 | . 10 5 5 9 12 Average Overweight (x) 2 | . 1 2 5 2 1 Largest Inventory Capacity 25 | 8 25 25 25 25 25 Average Capacity 22 | 7 17 25 25 25 21 Most Carried 25 | 8 19 25 25 25 25 Average Carried 20 | 5 12 22 24 24 20 Final Capacity 25 | 8 25 25 25 25 15 Final Carried 25 | 8 19 25 25 25 9 Class Distribution -------------------- 55% | Mutant 33% | Commander-Mutant 3% | Gladiator Dominant Class ---------------- Mutant | -10/Materials Mutant | -10/Mines Commander-Mutant | -10/Exiles Commander-Mutant | -9/Mines Gladiator | -8/Materials Resources | -11 -10 -10 -10 -9 -8 ----------- Run | Yrd Mat Min Exi Min Mat Matter Collected 1304 | 278 612 70 20 100 224 Remotely . | . . . . . . Salvage Created 2413 | 78 943 140 190 242 820 Parts 143 | 3 66 16 7 11 40 Haulers Intercepted 6 | . 2 . . . 4 Recyclers Shooed . | . . . . . . Parts Field Recycled . | . . . . . . Retrieved Matter . | . . . . . . Parts Self-Destructed . | . . . . . . Prevented . | . . . . . . Kills | -11 -10 -10 -10 -9 -8 ------- Run | Yrd Mat Min Exi Min Mat Combat Hostiles Destroyed 37 | . 20 7 . 1 9 Melee 8 | . . . . 1 7 Guns 10 | . 10 . . . . Cannons 16 | . 8 7 . . 1 AOE 2 | . 2 . . . . Classes Destroyed 10 | 1 7 1 . . 1 Worker 3 | . . . . . 3 Builder 1 | . 1 . . . . Tunneler 4 | . 1 . . 3 . Hauler 6 | . 2 . . . 4 Recycler 5 | 1 1 . . 2 1 Operator 1 | . 1 . . . . Watcher 5 | . 3 . . . 2 Swarmer 10 | . 3 6 . 1 . Grunt 22 | . 17 . . . 5 Sentry 5 | . . 1 . . 4 Best Kill Streak 6 | 1 6 3 . 2 5 Combat Bots Only 4 | . 4 3 . 1 1 Max Kills in Single Turn 3 | 1 3 1 . 1 1 Gunslinging . | . . . . . . Exploded 2 | . 2 . . . . Melee 1 | . . . . 1 1 Uniques/NPCs Destroyed . | . . . . . . Combat | -11 -10 -10 -10 -9 -8 -------- Run | Yrd Mat Min Exi Min Mat Hostile Shots Fired 252 | . 81 32 . 11 128 Missed 66 | . 28 9 . 4 25 Damage Taken 3140 | . 781 256 43 129 1931 Core 767 | . 139 30 22 25 551 Absorbed by Shields . | . . . . . . Regen/Repaired (Parts) 42 | . 42 . . . . Core Remaining (%) 56 | 100 . . . 13 . Volleys Fired 97 | 2 71 15 . . 9 Largest 2 | 2 2 2 . . 1 Hottest 103 | 70 103 103 . . 68 Shots Fired 182 | 4 139 30 . . 9 Gun 89 | 4 85 . . . . Cannon 92 | . 53 30 . . 9 Launcher 1 | . 1 . . . . Special . | . . . . . . Kinetic 96 | 2 71 15 . . 8 Thermal 85 | 2 67 15 . . 1 Explosive 1 | . 1 . . . . Electromagnetic . | . . . . . . Robot Hit Streak 8 | 3 8 4 . . 3 Robot Miss Streak 7 | . 7 2 . . 1 Penetration Max . | . . . . . . Secondary Targets 2 | . 2 . . . . Max Gunslinging Chain 1 | . 1 . . . . Shots Hit Robots 168 | 3 76 15 9 13 52 Core Hits 79 | 2 47 8 6 2 14 Critical Kills . | . . . . . . Critical Parts Destroyed 2 | . . . . . 2 Critical Strikes 8 | . 2 2 . 1 3 Burn 2 | . 2 . . . . Blast 2 | . . 2 . . . Smash 2 | . . . . . 2 Sever 2 | . . . . 1 1 Melee Attacks 92 | . . . 9 20 63 Impact 16 | . . . . . 16 Slashing 76 | . . . 9 20 47 Piercing . | . . . . . . Sneak Attacks 17 | . . . . 8 9 Combat Hostiles . | . . . . . . Follow-up Attacks 9 | . . . 2 2 5 Damage Inflicted 5246 | 37 1474 314 683 785 1953 Guns 611 | 37 574 . . . . Cannons 1081 | . 641 314 . . 126 Explosions 252 | . 252 . . . . Melee 3295 | . . . 683 785 1827 Ramming 7 | . 7 . . . . Kinetic 840 | 12 614 109 . . 105 Thermal 852 | 25 601 205 . . 21 Explosive 40 | . 40 . . . . Electromagnetic 212 | . 212 . . . . Impact 358 | . . . . . 358 Slashing 2937 | . . . 683 785 1469 Piercing . | . . . . . . Highest Corruption . | . . . . . . Average Corruption . | . . . . . . Corruption Purged . | . . . . . . Corruption Blocked . | . . . . . . Overload Shots . | . . . . . . Overflow Damage 500 | . 13 1 20 281 185 Projectiles 14 | . 13 1 . . . Explosions . | . . . . . . Melee 486 | . . . 20 281 185 Knockbacks 6 | . 3 . . . 3 Impact 2 | . . . . . 2 Kinetic 4 | . 3 . . . 1 Secondary . | . . . . . . Self-Inflicted Damage 38 | . 38 . . . . Shots 1 | . 1 . . . . Rammed 1 | . 1 . . . . Targets Rammed 1 | . 1 . . . . Kicked . | . . . . . . Crushed . | . . . . . . Highest Temperature 326 | . 326 206 . 13 42 Average Temperature 77 | . 76 89 . 7 16 Received Heat Transfer 1190 | . 369 72 18 47 684 Siege Activations . | . . . . . . Robots Corrupted . | . . . . . . Combat Hostiles . | . . . . . . Parts Fried 4 | . . . . . 4 Impact Corruptions 6 | . . . . . 6 Robots Melted . | . . . . . . Combat Hostiles . | . . . . . . Parts Melted . | . . . . . . Heat Transferred 2109 | 74 1628 370 . . 37 Parts Sabotaged . | . . . . . . Parts Stolen . | . . . . . . Parts Stripped . | . . . . . . Power Chain Reactions 1 | . 1 . . . . Alert | -11 -10 -10 -10 -9 -8 ------- Run | Yrd Mat Min Exi Min Mat Peak Influence 365 | 5 365 199 . 120 350 Initial 94 | . 3 94 . . 29 Average 138 | 3 190 91 . 70 191 Maximum Alert Level 1 | . 1 . . . 1 Low Security (%) 71 | 100 44 100 . 100 52 Level 1 28 | . 55 . . . 47 Level 2 . | . . . . . . Level 3 . | . . . . . . Level 4 . | . . . . . . Level 5 . | . . . . . . High Security . | . . . . . . Max Security . | . . . . . . Squads Dispatched 8 | . 5 . . . 3 Investigation 5 | . 4 . . . 1 Extermination . | . . . . . . Reinforcement 3 | . 1 . . . 2 Assault . | . . . . . . Garrison . | . . . . . . Intercept . | . . . . . . Searches Triggered . | . . . . . . Construction Impeded . | . . . . . . Haulers Reinforced . | . . . . . . Active Scanning Responses . | . . . . . . Cargo Convoy Interrupts . | . . . . . . Stealth | -11 -10 -10 -10 -9 -8 --------- Run | Yrd Mat Min Exi Min Mat Distress Signals 10 | . 6 . . 1 3 Communications Jammed . | . . . . . . Distress Signals . | . . . . . . Times Spotted 77 | . 35 9 . 9 24 Peak Tracking Total 4 | . 4 3 . 2 4 Tactical Retreats 7 | . 5 . . 1 1 Traps | -11 -10 -10 -10 -9 -8 ------- Run | Yrd Mat Min Exi Min Mat Traps Triggered . | . . . . . . Indirectly . | . . . . . . Trap Hack Attempts . | . . . . . . Triggered . | . . . . . . Disarmed 6 | . 6 . . . . Reprogrammed 1 | . 1 . . . . Reused . | . . . . . . Traps Extracted . | . . . . . . Installed . | . . . . . . Triggered . | . . . . . . Machines | -11 -10 -10 -10 -9 -8 ---------- Run | Yrd Mat Min Exi Min Mat Machines Disabled 7 | . 4 1 . 1 1 Max in Single Turn 1 | . 1 1 . . . Machines Repaired . | . . . . . . Machines Dismantled . | . . . . . . Machines Sabotaged . | . . . . . . Overloaded Fab Kills . | . . . . . . Hacking | -11 -10 -10 -10 -9 -8 --------- Run | Yrd Mat Min Exi Min Mat Machines Accessed 18 | . 10 . 5 . 3 Terminals 9 | . 7 . . . 2 Fabricators . | . . . . . . Repair Stations 1 | . 1 . . . . Recycling Units 2 | . 2 . . . . Scanalyzers 1 | . . . . . 1 Garrison Access . | . . . . . . Total Hacks 103 | . 45 . 50 . 8 Successful 87 | . 31 . 50 . 6 Failed 16 | . 14 . . . 2 Catastrophic 1 | . 1 . . . . Database Lockouts . | . . . . . . Manual 31 | . 22 . 4 . 5 Terminals 40 | . 35 . . . 5 Fabricators . | . . . . . . Repair Stations 4 | . 4 . . . . Recycling Units 6 | . 6 . . . . Scanalyzers 3 | . . . . . 3 Garrison Access . | . . . . . . Terminal Hacks 60 | . 10 . 50 . . Record 49 | . . . 49 . . Prototype ID Bank 2 | . 2 . . . . Emergency Access Points 2 | . 2 . . . . Locate Traps 2 | . 2 . . . . Disarm Traps 1 | . 1 . . . . Reprogram Traps 1 | . 1 . . . . Hauler Manifests 1 | . 1 . . . . Zone Layout 1 | . 1 . . . . Derelict Proto ID Bank 1 | . . . 1 . . Fabricator Hacks . | . . . . . . Repair Station Hacks 4 | . 4 . . . . Scan Component 2 | . 2 . . . . Repair 1 | . 1 . . . . Refit 1 | . 1 . . . . Recycling Unit Hacks 5 | . 5 . . . . Recycle Component 1 | . 1 . . . . Report Inventory 2 | . 2 . . . . Retrieve Matter 2 | . 2 . . . . Scanalyzer 3 | . . . . . 3 Insert Component 2 | . . . . . 2 Analyze 1 | . . . . . 1 Garrison Access Hacks . | . . . . . . Unauthorized Hacks 14 | . 11 . . . 3 Terminals 14 | . 11 . . . 3 Track 1 | . 1 . . . . Assimilate 4 | . 3 . . . 1 Botnet 9 | . 7 . . . 2 Fabricators . | . . . . . . Repair Stations . | . . . . . . Recycling Units . | . . . . . . Scanalyzers . | . . . . . . Garrison Access . | . . . . . . Data Cores Recovered . | . . . . . . Used . | . . . . . . Hacking Detections 13 | . 10 . . . 3 Full Trace Events 8 | . 6 . . . 2 Feedback Events . | . . . . . . Feedback Blocked . | . . . . . . Robot Schematics Acquired . | . . . . . . Robots Built . | . . . . . . Authchips . | . . . . . . Time . | . . . . . . Total Robot Build Rating . | . . . . . . Part Schematics Acquired 1 | . . . . . 1 Parts Built . | . . . . . . Authchips . | . . . . . . Time . | . . . . . . Total Part Build Rating . | . . . . . . Parts Repaired 1 | . 1 . . . . Time 26 | . 26 . . . . Parts Recycled 1 | . 1 . . . . Recycled Matter . | . . . . . . Retrieved Matter . | . . . . . . Retrieved Components . | . . . . . . Parts Scanalyzed 1 | . . . . . 1 Part Schematics Acquired 1 | . . . . . 1 Parts Damaged . | . . . . . . Bothacking | -11 -10 -10 -10 -9 -8 ------------ Run | Yrd Mat Min Exi Min Mat Used RIF Installer . | . . . . . . Robots Hacked . | . . . . . . Non-combat . | . . . . . . Combat . | . . . . . . Robot Hacks Applied . | . . . . . . Relay Couplers Released . | . . . . . . Fabnet Peak Effective % . | . . . . . . Robots Rewired 3 | . . . 3 . . Allies Hacked . | . . . . . . Hacks Repelled . | . . . . . . Allies | -11 -10 -10 -10 -9 -8 -------- Run | Yrd Mat Min Exi Min Mat Total Allies 7 | . . 4 3 . . Largest Group 6 | . . 4 6 6 6 Highest-Rated Group 90 | . . 71 90 87 87 Highest-Rated Ally 31 | . . 31 31 21 21 Total Orders . | . . . . . . Ally Attacks 89 | . . 12 12 30 35 Total Damage 1467 | . . 112 208 747 400 Kills 20 | . . 2 2 9 7 Allies Corrupted . | . . . . . . Allies Melted . | . . . . . . Intel | -11 -10 -10 -10 -9 -8 ------- Run | Yrd Mat Min Exi Min Mat Robot Analysis Total . | . . . . . . Derelict Logs Recovered 1 | . . 1 . . . Drone Launches . | . . . . . . Drone Recoveries . | . . . . . . Exploration | -11 -10 -10 -10 -9 -8 ------------- Run | Yrd Mat Min Exi Min Mat Turns Passed 6656 | 119 1807 1104 1752 1046 828 Spaces Moved 4058 | 77 1280 726 970 521 484 Core 13 | 12 1 . . . . Treads 119 | . . . . 119 . Legs 39 | 24 . . . 15 . Wheels 3695 | 41 1279 726 970 387 292 Hover 192 | . . . . . 192 Flight . | . . . . . . Fastest Speed 50 | 50 90 130 175 130 98 Average Speed 144 | 98 117 144 175 182 118 Slowest Speed 785 | 120 550 175 175 750 785 Overloaded Moves . | . . . . . . Propulsion Burnouts . | . . . . . . Robots Hopped . | . . . . . . Cave-ins Triggered . | . . . . . . Exploration Rate (%) 66 | 4 97 90 93 78 34 Regions Visited 5 Branch Regions 3 Pre-discovered Areas 1 | . . . 1 . . Known Exits Taken 4 | . 1 1 1 1 . Unknown Exits Taken 1 | 1 . . . . . Scrap Searched 2 | . . 1 . 1 . Spaces Dug . | . . . . . . Terrain Destroyed 7 | . 7 . . . . Melee . | . . . . . . Projectile . | . . . . . . AOE 7 | . 7 . . . . Terrain Rammed . | . . . . . . Walls Destroyed . | . . . . . . Machines Disabled . | . . . . . . Actions | -11 -10 -10 -10 -9 -8 --------- Run | Yrd Mat Min Exi Min Mat Total 4606 | 115 1451 749 1021 601 669 Wait 141 | 14 35 . 3 38 51 Move 4053 | 76 1279 725 969 520 484 Hop . | . . . . . . Pick Up 80 | 13 29 7 5 8 18 Fast Attach 9 | 1 2 . 1 . 5 Attach 31 | 6 10 . 1 1 13 Detach 2 | 1 . . . . 1 Swap 30 | 2 9 1 . 9 9 Drop 56 | . 15 1 8 9 23 Fire 97 | 2 71 15 . . 9 Melee 79 | . . . 7 16 56 Ram 1 | . 1 . . . . Kick . | . . . . . . Crush . | . . . . . . Escape Stasis . | . . . . . . Rewire 27 | . . . 27 . . Trap . | . . . . . . Miscellaneous . | . . . . . . Route ------- -11/Scrapyard -10/Materials (discovered 6 exits: *Mat x3 / *Min x2 / *Sub) -10/Mines (discovered 2 exits: *Mat / *Exi) -10/Exiles (discovered 2 exits: *Min x2) -9/Mines -8/Materials (discovered 1 exit: [*Fac]) History --------- Turn | Location | Event 12 | -11/Scrapyard | Discovered new exit (range 15) 120 | -11/Scrapyard | Entered Materials 308 | -10/Materials | Build established: Mutant 349 | -10/Materials | Lost 3 parts (1p1n1u) 524 | -10/Materials | Discovered new exit (range 10) 572 | -10/Materials | Discovered new exit (range 4) 638 | -10/Materials | Discovered new exit (range 16) 725 | -10/Materials | Core integrity fell below 50% 988 | -10/Materials | Identified exit to Mines 1465 | -10/Materials | Discovered new exit (range 14) 1501 | -10/Materials | Identified exit to Subcaves 1592 | -10/Materials | Repaired Lgt. Cannon 1632 | -10/Materials | Discovered new exit (range 11) 1645 | -10/Materials | Identified exit to Materials 1837 | -10/Materials | Discovered exit to Materials (range 11) 1927 | -10/Materials | Entered Mines 2012 | -10/Mines | Received a Rocket Launcher from a helpful Derelict 2255 | -10/Mines | Joined a pair of Derelicts in attacking an 0b10 outpost 2437 | -10/Mines | Assisted by bots powering up and referring to "LRC-V3" 2566 | -10/Mines | Learned Materials terminal intel 2975 | -10/Mines | Received a Mining Laser from a helpful Derelict 2976 | -10/Mines | Discovered exit to Materials (range 8) 3021 | -10/Mines | Deemed a non-threat by the Exiles lab entrance 3022 | -10/Mines | Discovered new exit (range 5) 3029 | -10/Mines | Identified exit to Exiles 3031 | -10/Mines | Entered Exiles 3031 | -10/Exiles | Found Exiles lab destroyed 3031 | -10/Exiles | Accompanied by 4 allies 3082 | -10/Exiles | Discovered new exit (range 15) 3648 | -10/Exiles | Learned location of Zion (-7) 3812 | -10/Exiles | Discovered new exit (range 10) 3898 | -10/Exiles | Build established: Commander-Mutant 4285 | -10/Exiles | Opened EX-Vault 4314 | -10/Exiles | Found AWS/Autocannon 4781 | -10/Exiles | Identified exit to Mines 4783 | -10/Exiles | Entered Mines 4783 | -9/Mines | Accompanied by 6 allies 5062 | -9/Mines | Assembled infested the area 5067 | -9/Mines | Assisted by a Guerilla fighting off Assembled 5345 | -9/Mines | Core integrity fell below 20% 5480 | -9/Mines | Found a hidden stash of uninstalled traps 5777 | -9/Mines | Discovered new exit (range 9) 5788 | -9/Mines | Identified exit to Materials 5829 | -9/Mines | Entered Materials 5829 | -8/Materials | Accompanied by 6 allies 5829 | -8/Materials | Evolved 4 slots: Propulsion x2, Utility x2 5830 | -8/Materials | Loaded intel: 12 terminal locations 6008 | -8/Materials | Lost 4 allies 6616 | -8/Materials | Core integrity fell below 50% 6625 | -8/Materials | Discovered new exit (range 9) 6645 | -8/Materials | Core integrity fell below 20% 6657 | -8/Materials | Destroyed by X-62 Marksman with Pulse Rifle Last Messages --------------- Aerolev Unit destroyed. Y-45 Defender destroyed. Slug penetrates Wall. Processing Tank disabled. Penetrated by Slug. Critical hit (Burn: +37). Penetrated by Slug. X-62 Marksman knocked back. Lgt. Cannon destroyed. Aerolev Unit destroyed. Knocked back. Penetrated by Slug. Critical hit (Burn: +37). Hammer destroyed. Knocked back. Acquired 9 matter. Dropped Lrg. Battery. Extracted 86 energy. Penetrated by Slug. Structural Scanner destroyed. Map ----- +----------------------------------------------------+ | # ????????????????????????????????????????????? | | # ????????????????????????????????????????????? | | # ????????????????????????????????????????????? | | # ????????????????????????????????????????????? | | # ??????????#########?????????????????????????? | | # ############?????????????????????????? | | ###+########## ####???????????????????????? | | ####???????????????????????? | | ???????????????????????? | | T ##?????????????????????????? | | """ ##?????????????????????????? | | """ ^ !=##???????????????????????????? | | """ [[ = ##???????????????????????????? | | [[ ##???????????????????????????? | | [ ###################??????????? | | ###################??????????? | | [ + ##??????????? | | [= % ############ """ """ ##??????????? | | ####+######### ############ """ G" ##??????????? | | # %% # # ##?######### """ """ ##??????????? | | # # ??? + + ##??????????? | | # # ??? ############## ##??????????? | | # = # ??? ##############! ! ##??????????? | | ## # ????############## ##??????????? | | ##] # ????##########;#;###"#/###########?????? | | ######### ????## % @ k*# #########?????? | | ##########????## !x# % ##?????? | | ??????????????## =[%x% < ##?????? | | ??????????????## """"" "" "H; ##?????? | | ??????????????## """"" "" " # #########?????? | | ??????????????????"""" " """ ###############?????? | | ??????????????????###################????????????? | | ??????????????????#############??????????????????? | | | | | | | | | | | | | | | | | | | | | | | | | | | | | | | | | | | +----------------------------------------------------+ Best States ------------- Heat Dissipation 31 Energy Generation 14 Energy Capacity 280 Matter Stores 300 Matter Capacity 300 Sight Range 16 Robot Scan Range 15 Terrain Scan Density 10 Armor Coverage 150 Evasion (%) 50 Recoil Reduction 2 Item Schematics ----------------- Arm. Treads | -8/Materials | Scanalyzed Robot Schematics ------------------ None Fabricated ------------ Nothing Alien Tech Used ----------------- None Achievements -------------- I Survived The Infestation Quantum Hacking True Hacker root@ Challenges ------------ None Game ------ Seed SkeletonHugeProtection Manual? 0 Play Time 00:59:32 Cumulative 7.7 hours Start 2024.04.25 @ 11:45:51 End 2024.04.25 @ 12:49:34 Sessions 1 Manual Loads 0 Difficulty Rogue Special Mode None Game No. 9 Rogue 9 Adventurer 0 Explorer 0 Win Type - Total 0 Types 0/0/0/0/0/0/0/0/0 Lore% 15 Gallery% 14 Achievement% 15 Wizard Run 0 Options --------- Layout 1 ASCII 0 Keyboard 0 Movement Arrows Keybinds 0 Fullscreen 0 Font 20/SmallcapsGlow Map View 50x35 Zoom Use 0% Tactical HUD 0 Map Filters NONE Filters NONE Steam 1 RUN: 152a478c-cac4-4031-8f15-29b66c85b0bc